bitfinex/quotes_SOLUSD_20251013
["timestamp","ask_amount","ask_price","bid_price","bid_amount"]
[1760368852499,0.09844207,195.85,195.8,10.87647521]
[1760368852692,0.68,195.82,195.77,14.44786726]
[1760368852913,0.68,195.82,195.78,10.87647521]
[1760368853304,0.77844207,195.85,195.78,10.87647521]
[1760368853815,0.68,195.84,195.78,10.87647521]
[1760368854017,0.09844207,195.85,195.81,10.87647521]
[1760368854218,0.09844207,195.85,195.84,31.67647521]
[1760368854434,0.09844207,195.85,195.84,36.78268436]
[1760368854797,0.68,195.92,195.85,10.87647521]
[1760368855110,5.10204081,196.0,195.89,10.87647521]
[1760368855310,0.68,195.99,195.91,10.87647521]
[1760368855620,0.68,195.99,195.89,10.87647521]
[1760368855621,0.68,195.98,195.9,10.87647521]
[1760368856203,0.68,195.98,195.91,5.10438466]
[1760368856523,0.68,196.03,195.95,20.8]
[1760368856717,0.68,196.02,195.96,10.87647521]
[1760368856920,0.68,196.02,195.95,20.8]
[1760368857121,5.82938673,196.05,195.96,10.87647521]
[1760368857304,0.68,196.02,195.94,20.8]
[1760368857635,0.68,196.01,195.95,5.10334268]
[1760368857811,0.68,196.0,195.95,5.10334268]
[1760368858132,0.68,195.99,195.95,5.10334268]
[1760368858323,0.68,196.02,195.96,10.87647521]
[1760368858522,5.82938673,196.06,195.96,10.87647521]
[1760368858828,12.75030569,196.08,195.94,10.87647521]
[1760368858829,0.68,196.01,195.94,10.87647521]
[1760368859346,0.68,196.04,195.94,11.11647521]
[1760368859716,0.68,196.04,195.96,10.87647521]
[1760368860029,0.68,196.03,195.96,10.87647521]
[1760368860405,5.82938673,196.07,195.95,5.10334268]
[1760368860728,5.82938673,196.02,195.94,20.8]
[1760368860924,0.68,196.01,195.95,11.11647521]
[1760368861127,0.09918485,195.96,195.95,10.87647521]
[1760368861314,0.09918485,195.96,195.94,10.87647521]
[1760368861721,0.09918485,195.96,195.95,5.10334268]
[1760368861918,0.09918485,195.96,195.95,15.97981789]
[1760368862535,0.09918485,195.96,195.95,25.31981789]
[1760368862732,0.09918485,195.96,195.95,15.97981789]
[1760368863034,0.09918485,195.96,195.95,25.31981789]
[1760368863232,0.09918485,195.96,195.95,15.97981789]
[1760368863624,0.09918485,195.96,195.95,25.31981789]
[1760368863818,0.09918485,195.96,195.95,15.97981789]
[1760368864323,0.09399544,195.97,195.96,10.87647521]
[1760368864522,0.09399544,195.97,195.96,20.45647521]
[1760368864731,0.09399544,195.97,195.96,31.91647521]
[1760368864927,0.09399544,195.97,195.96,41.25647521]
[1760368865523,0.09399544,195.97,195.96,31.67647521]
[1760368865732,0.09399544,195.97,195.96,20.8]
[1760368866039,0.09399544,195.97,195.95,10.87647521]
[1760368866518,0.09399544,195.97,195.94,5.1033502]
[1760368866718,0.68,195.96,195.94,79.2]
[1760368867113,0.68,195.95,195.94,79.2]
[1760368867315,0.68,195.95,195.88,10.87647521]
[1760368867545,0.68,195.94,195.88,10.87647521]
[1760368867841,0.68,195.93,195.86,9.34]
[1760368868014,5.10357443,195.95,195.81,18.11447014]
[1760368868015,0.68,195.92,195.81,18.11447014]
[1760368868214,0.68,195.91,195.81,18.11447014]
[1760368868411,0.68,195.91,195.82,10.87647521]
[1760368868614,0.68,195.9,195.83,9.34]
[1760368868832,0.68,195.89,195.81,14.44699147]
[1760368869021,0.68,195.89,195.78,12.76887297]
[1760368869022,0.68,195.88,195.79,5.10725854]
[1760368869222,0.68,195.87,195.79,5.10725854]
[1760368869533,0.68,195.86,195.79,5.10725854]
[1760368869933,0.68,195.85,195.78,15.98424924]
[1760368871620,0.68,195.84,195.78,15.98424924]
[1760368871821,0.68,195.85,195.78,15.98424924]
[1760368872021,0.68,195.84,195.78,15.98424924]
[1760368872323,0.68,195.83,195.73,0.24]
[1760368872540,5.82938673,195.81,195.7,5.10986203]
[1760368872738,0.7,195.8,195.7,5.10986203]
[1760368872937,0.7,195.79,195.7,5.10986203]
[1760368873436,0.7,195.79,195.71,10.87647521]
[1760368873745,8.81868389,195.85,195.74,20.8]
[1760368873945,0.7,195.82,195.76,5.10829587]
[1760368874241,5.1059561,195.85,195.76,17.87903555]
[1760368874424,0.7,195.84,195.76,17.87903555]
[1760368874736,0.7,195.83,195.76,5.10829587]
[1760368875333,12.76198917,195.9,195.77,11.11647521]
[1760368875638,0.7,195.85,195.77,10.87647521]
[1760368876028,0.7,195.85,195.78,5.10777403]
[1760368876619,5.80596127,195.85,195.78,5.10777403]
[1760368876828,0.7,195.84,195.78,5.10777403]
[1760368877120,9.51868389,195.83,195.75,5.10833269]
[1760368877431,0.7,195.82,195.75,5.10833269]
[1760368878044,5.10655727,195.83,195.75,5.10833269]
[1760368878251,0.7,195.81,195.76,10.87647521]
[1760368878425,9.51868389,195.81,195.73,31.67647521]
[1760368878621,0.7,195.8,195.73,31.67647521]
[1760368878936,0.7,195.8,195.71,10.87647521]
[1760368879137,0.7,195.79,195.71,10.87647521]
[1760368879331,0.7,195.78,195.71,10.87647521]
[1760368879646,17.87273201,195.83,195.61,12.78053269]
[1760368879647,8.81868389,195.74,195.61,12.78053269]
[1760368879841,9.51868389,195.73,195.62,9.34]
[1760368880041,5.10933987,195.72,195.67,20.8]
[1760368880350,0.7,195.71,195.61,18.13274576]
[1760368880533,20.8,195.78,195.62,10.87647521]
[1760368880738,9.51868389,195.75,195.63,0.24]
[1760368881044,0.09635055,195.64,195.63,0.24]
[1760368881551,0.09635055,195.64,195.63,20.45647521]
[1760368881739,0.09635055,195.64,195.63,11.11647521]
[1760368881940,0.09635055,195.64,195.63,16.22816564]
[1760368882243,0.10860839,195.67,195.66,31.67647521]
[1760368882447,0.09291531,195.68,195.66,31.67647521]
[1760368882753,0.7,195.79,195.68,10.87647521]
[1760368882951,5.80756075,195.79,195.68,10.87647521]
[1760368883149,0.7,195.77,195.68,0.15]
[1760368883850,0.7,195.77,195.68,5.2603843]
[1760368884355,0.7,195.77,195.68,16.13685951]
[1760368885133,0.7,195.77,195.69,10.87647521]
[1760368885334,20.8,195.85,195.69,10.87647521]
[1760368885335,20.8,195.85,195.69,11.02647521]
[1760368885642,26.45605167,196.14,195.8,10.87647521]
[1760368885643,0.7,195.84,195.8,10.87647521]
[1760368885844,8.81868389,195.9,195.81,5.10699147]
[1760368886041,5.10464522,195.9,195.81,5.10699147]
[1760368886354,0.7,195.89,195.81,5.10699147]
[1760368886656,0.7,195.88,195.81,5.10699147]
[1760368887152,0.7,195.87,195.81,17.87447014]
[1760368888132,20.8,195.93,195.81,17.87447014]
[1760368888133,0.7,195.9,195.85,20.8]
[1760368888346,8.81868389,195.95,195.85,20.8]
[1760368888347,0.7,195.89,195.85,20.8]
[1760368889145,5.10441637,195.91,195.85,25.90571776]
[1760368889442,0.7,195.9,195.82,10.87647521]
[1760368889759,0.7,195.89,195.83,20.8]
[1760368889954,5.80388033,195.93,195.84,10.87647521]
[1760368890149,0.7,195.92,195.84,10.87647521]
[1760368890457,0.7,195.91,195.84,10.87647521]
[1760368891257,0.7,195.91,195.85,5.10594842]
[1760368893957,0.7,195.93,195.87,20.8]
[1760368895042,5.10411757,195.93,195.87,20.8]
[1760368895363,0.7,195.92,195.87,20.8]
[1760368895762,0.7,195.91,195.87,20.8]
[1760368895955,0.7,195.9,195.85,20.8]
[1760368896151,0.7,195.89,195.85,20.8]
[1760368897059,0.7,195.89,195.86,5.10568773]
[1760368897767,5.10431815,195.92,195.86,5.10568773]
[1760368897768,5.80431815,195.92,195.86,5.10568773]
[1760368898860,0.7,195.96,195.87,10.87647521]
[1760368899058,19.99999999,196.07,195.87,10.87647521]
[1760368899059,12.75542955,196.0,195.9,31.67647521]
[1760368899374,0.7,195.99,195.9,31.67647521]
[1760368899663,0.7,195.99,195.92,10.87647521]
[1760368900363,0.7,195.99,195.92,9.34]
[1760368900769,0.7,195.98,195.91,31.67647521]
[1760368900976,0.11128387,195.93,195.91,31.67647521]
[1760368901146,0.11128387,195.93,195.91,36.78085169]
[1760368901676,0.11128387,195.93,195.91,36.93085169]
[1760368903071,0.09465493,195.94,195.93,31.67647521]
[1760368903255,0.09465493,195.94,195.93,41.01647521]
[1760368903450,0.09465493,195.94,195.93,31.82647521]
[1760368903681,0.09465493,195.94,195.93,41.16647521]
[1760368904459,0.09465493,195.94,195.93,46.27033883]
[1760368905057,0.09465493,195.94,195.93,46.12033883]
[1760368905251,0.09465493,195.94,195.93,46.27033883]
[1760368905451,0.09465493,195.94,195.93,36.93033883]
[1760368905647,0.09465493,195.94,195.93,36.78033883]
[1760368905876,0.09465493,195.94,195.93,10.87647521]
[1760368906064,0.09465493,195.94,195.93,15.98033883]
[1760368906447,0.09465493,195.94,195.93,36.78033883]
[1760368907865,0.10201067,195.95,195.93,16.13033883]
[1760368908071,0.10201067,195.95,195.94,31.72647521]
[1760368908373,0.10201067,195.95,195.94,25.37007835]
[1760368908555,0.10201067,195.95,195.94,46.17007835]
[1760368908753,0.10201067,195.95,195.94,25.37007835]
[1760368909272,0.09261698,195.96,195.95,31.67647521]
[1760368909453,0.10996915,195.98,195.96,10.87647521]
[1760368909773,0.10996915,195.98,195.97,10.87647521]
[1760368910079,1e-08,195.98,195.97,20.77675739]
[1760368910375,0.10288007,196.01,195.97,20.77675739]
[1760368910376,1e-08,195.99,195.98,15.97903669]
[1760368910581,1e-08,195.99,195.98,16.02903669]
[1760368910762,1e-08,195.99,195.98,25.36903669]
[1760368911159,1e-08,195.99,195.98,15.97903669]
[1760368911556,1e-08,195.99,195.98,20.8]
[1760368911557,0.67000001,195.99,195.98,20.8]
[1760368911752,1e-08,195.99,195.98,31.67647521]
[1760368912176,1e-08,195.99,195.98,10.87647521]
[1760368912356,1e-08,195.99,195.98,15.97903669]
[1760368912678,1e-08,195.99,195.98,36.77903669]
[1760368913172,1e-08,195.99,195.98,16.02903669]
[1760368913474,1e-08,195.99,195.98,15.97903669]
[1760368913663,1e-08,195.99,195.98,16.02903669]
[1760368913975,1e-08,195.99,195.98,25.29903669]
[1760368914561,1e-08,195.99,195.98,15.97903669]
[1760368914774,1e-08,195.99,195.98,36.77903669]
[1760368915578,1e-08,195.99,195.98,46.09903669]
[1760368915779,1e-08,195.99,195.98,36.77903669]
[1760368916779,1e-08,195.99,195.98,16.02903669]
[1760368917080,1e-08,195.99,195.98,25.34903669]
[1760368917259,1e-08,195.99,195.98,16.02903669]
[1760368917455,1e-08,195.99,195.98,25.34903669]
[1760368918452,1e-08,195.99,195.98,15.97903669]
[1760368918857,1e-08,195.99,195.98,25.29903669]
[1760368919268,1e-08,195.99,195.98,15.97903669]
[1760368920156,1e-08,195.99,195.98,25.29903669]
[1760368920356,0.67,196.05,195.98,28.7354404]
[1760368920574,0.67,196.05,196.0,10.87647521]
[1760368920775,0.67,196.04,195.98,5.10256148]
[1760368921091,0.09194593,196.01,195.99,10.87647521]
[1760368921387,0.09194593,196.01,196.0,20.19647521]
[1760368922569,0.09194593,196.01,196.0,16.4887201]
[1760368922773,0.09194593,196.01,196.0,15.97851602]
[1760368923588,0.76194593,196.01,196.0,15.97851602]
[1760368924186,0.09801545,196.02,196.01,10.87647521]
[1760368924383,0.09369518,196.03,196.01,10.92647521]
[1760368924708,0.09369518,196.03,196.02,16.48814748]
[1760368924989,0.09304407,196.04,196.03,10.87647521]
[1760368925168,0.10861474,196.05,196.03,10.87647521]
[1760368925362,0.10861474,196.05,196.04,11.38657518]
[1760368926371,0.10861474,196.05,196.04,20.70657518]
[1760368926676,0.10861474,196.05,196.04,25.80757497]
[1760368926860,0.10861474,196.05,196.04,16.48757497]
[1760368927060,0.77861474,196.05,196.04,15.977475]
[1760368928081,0.77861474,196.05,195.99,12.75516084]
[1760368928268,0.67,196.04,195.94,0.05]
[1760368928767,0.67,196.04,195.94,28.7890862]
[1760368929083,0.67,196.04,195.95,10.87647521]
[1760368929388,0.10861474,196.05,195.96,0.56030822]
[1760368929682,0.10861474,196.05,195.96,0.05]
[1760368929888,0.77861474,196.05,195.96,0.05]
[1760368930583,0.77861474,196.05,195.97,10.87647521]
[1760368930798,0.67,196.04,195.98,9.32]
[1760368930997,0.67,196.03,195.97,10.87647521]
[1760368931198,0.67,196.03,195.96,17.86078791]
[1760368931199,0.67,196.02,195.91,10.87647521]
[1760368931397,0.67,196.01,195.91,17.86534632]
[1760368931700,0.67,196.0,195.92,10.87647521]
[1760368931913,0.67,196.02,195.92,10.92647521]
[1760368932081,0.67,196.01,195.92,10.87647521]
[1760368932283,0.67,196.0,195.92,10.87647521]
[1760368932585,0.72,195.99,195.93,5.10386362]
[1760368932781,0.72,195.98,195.9,10.87647521]
[1760368932999,0.72,195.97,195.9,10.87647521]
[1760368933196,0.72,195.96,195.87,5.10520459]
[1760368933399,0.72,195.95,195.84,5.10620915]
[1760368933598,0.72,195.94,195.85,20.19647521]
[1760368933789,0.72,195.93,195.85,10.87647521]
[1760368933986,20.8,195.99,195.85,10.92647521]
[1760368934293,0.72,195.95,195.87,10.87647521]
[1760368934497,6.5559184,195.94,195.85,10.87647521]
[1760368934692,5.82386362,195.93,195.86,5.10568773]
[1760368935008,0.72,195.92,195.86,5.10568773]
[1760368935213,0.72,195.91,195.86,5.10568773]
[1760368935381,0.72,195.9,195.86,5.10568773]
[1760368935780,0.72,195.89,195.86,5.10568773]
[1760368936506,5.10360314,195.94,195.86,5.10568773]
[1760368936700,0.72,195.89,195.86,5.10568773]
[1760368937703,0.72,195.89,195.85,5.10585052]
[1760368937902,0.72,195.93,195.86,10.87647521]
[1760368938500,0.72,195.92,195.86,10.87647521]
[1760368939497,0.72,195.91,195.87,5.10542706]
[1760368939701,0.72,195.9,195.86,5.10565601]
[1760368939888,0.72,195.89,195.86,5.10565601]
[1760368940083,0.72,195.88,195.86,5.10565601]
[1760368940299,0.72,195.9,195.86,5.10565601]
[1760368940684,0.72,195.94,195.87,10.87647521]
[1760368941206,0.10055129,195.88,195.87,10.87647521]
[1760368941405,0.10364066,195.92,195.9,31.67647521]
[1760368941605,0.11212518,195.94,195.92,10.87647521]
[1760368941805,0.11212518,195.94,195.92,20.19647521]
[1760368942008,0.11212518,195.94,195.92,10.87647521]
[1760368942207,0.11212518,195.94,195.93,10.87647521]
[1760368943310,0.83212518,195.94,195.91,5.10438466]
[1760368943512,0.83212518,195.94,195.9,17.86604864]
[1760368943713,0.83212518,195.94,195.91,10.87647521]
[1760368944517,0.83212518,195.94,195.91,15.98064101]
[1760368945088,0.72,195.93,195.91,5.1041658]
[1760368945301,0.72,195.92,195.88,10.87647521]
[1760368945508,0.72,195.91,195.85,10.87647521]
[1760368945817,0.11212518,195.94,195.85,15.98242363]
[1760368945997,0.72,195.93,195.85,5.10594842]
[1760368946200,0.11212518,195.94,195.86,10.87647521]
[1760368946402,0.11212518,195.94,195.87,9.32]
[1760368946603,0.11212518,195.94,195.88,10.87647521]
[1760368946604,0.83212518,195.94,195.88,10.87647521]
[1760368946915,0.83212518,195.94,195.88,20.19647521]
[1760368947109,0.83212518,195.94,195.88,10.87647521]
[1760368947489,0.83212518,195.94,195.88,20.19647521]
[1760368947693,0.83212518,195.94,195.88,10.87647521]
[1760368948301,0.83212518,195.94,195.9,10.87647521]
[1760368949215,0.83212518,195.94,195.86,10.87647521]
[1760368949397,0.83212518,195.94,195.89,10.87647521]
[1760368949799,0.11212518,195.94,195.89,20.19647521]
[1760368950013,0.11212518,195.94,195.89,10.87647521]
[1760368950312,0.11212518,195.94,195.9,0.51046452]
[1760368950618,0.11212518,195.94,195.89,31.67647521]
[1760368950803,0.11212518,195.94,195.92,10.87647521]
[1760368951198,0.11212518,195.94,195.9,10.87647521]
[1760368951518,0.11212518,195.94,195.92,10.87647521]
[1760368952503,0.83212518,195.94,195.93,5.10386362]
[1760368952703,0.11212518,195.94,195.93,5.10386362]
[1760368954108,0.11212518,195.94,195.93,25.30033883]
[1760368954309,1e-08,195.94,195.93,16.49072519]
[1760368954508,0.10155252,195.96,195.94,10.87647521]
[1760368955018,0.10155252,195.96,195.95,10.87647521]
[1760368955322,0.10155252,195.96,195.95,40.99647521]
[1760368955500,0.10155252,195.96,195.95,31.67647521]
[1760368955696,0.10155252,195.96,195.95,10.87647521]
[1760368956113,0.10155252,195.96,195.95,20.19647521]
[1760368956315,0.10155252,195.96,195.95,10.87647521]
[1760368956511,0.10155252,195.96,195.95,15.97981789]
[1760368957006,0.10155252,195.96,195.95,25.29981789]
[1760368957213,0.10155252,195.96,195.95,15.97981789]
[1760368957399,0.10155252,195.96,195.95,25.29981789]
[1760368958121,0.10155252,195.96,195.95,15.97981789]
[1760368959012,0.10155252,195.96,195.95,25.29981789]
[1760368959213,0.10155252,195.96,195.95,15.97981789]
[1760368959424,0.10155252,195.96,195.95,25.29981789]
[1760368959604,0.10155252,195.96,195.95,15.97981789]
[1760368959805,0.10155252,195.96,195.95,46.09981789]
[1760368960013,0.10155252,195.96,195.95,36.77981789]
[1760368960209,0.72,196.04,196.0,10.87647521]
[1760368960407,0.72,196.03,196.0,10.87647521]
[1760368960613,10.93511859,196.11,195.95,43.8887471]
[1760368960614,0.72,196.02,195.98,9.32]
[1760368960825,0.72,196.01,195.96,10.87647521]
[1760368961019,0.10775708,195.99,195.96,20.19647521]
[1760368961213,0.10775708,195.99,195.96,10.87647521]
[1760368961609,0.10775708,195.99,195.96,20.19647521]
[1760368961907,0.10775708,195.99,195.98,10.87647521]
[1760368962606,0.10775708,195.99,195.98,11.38673135]
[1760368962806,0.10775708,195.99,195.98,10.87647521]
[1760368963029,0.82775708,195.99,195.98,10.87647521]
[1760368963205,0.10775708,195.99,195.97,5.10282186]
[1760368963618,0.82775708,195.99,195.97,5.10282186]
[1760368963815,0.82775708,195.99,195.96,15.97955747]
[1760368964023,0.82775708,195.99,195.96,38.05726312]
[1760368964411,0.82775708,195.99,195.96,28.73726312]
[1760368964611,0.10775708,195.99,195.96,38.05726312]
[1760368964819,0.10775708,195.99,195.96,28.73726312]
[1760368965110,0.10775708,195.99,195.96,38.05726312]
[1760368965411,0.82775708,195.99,195.96,38.05726312]
[1760368966034,0.10775708,195.99,195.96,28.73726312]
[1760368966334,0.72,195.98,195.96,28.73726312]
[1760368966534,0.10775708,195.99,195.96,5.10308226]
[1760368966717,0.72,195.97,195.94,15.98007835]
[1760368966915,0.10775708,195.99,195.94,15.98007835]
[1760368966916,0.72,195.96,195.94,15.98007835]
[1760368967307,0.71,195.95,195.94,15.98007835]
[1760368967529,0.71,195.95,195.92,5.10412084]
[1760368967720,0.71,195.94,195.91,5.10437757]
[1760368967914,0.71,195.94,195.89,15.98112489]
[1760368968120,0.71,195.93,195.8,15.18223972]
[1760368968325,0.71,195.93,195.73,20.51090787]
[1760368968326,0.71,195.93,195.81,17.87403266]
[1760368968511,0.71,195.92,195.85,10.87647521]
[1760368968706,0.71,195.91,195.85,10.87647521]
[1760368969622,0.71,195.91,195.84,20.8]
[1760368969623,0.71,195.91,195.87,10.87647521]
[1760368969820,0.71,195.91,195.85,10.87647521]
[1760368970215,0.71,195.91,195.87,10.87647521]
[1760368970420,0.71,195.9,195.87,10.87647521]
[1760368970614,0.71,195.89,195.87,10.87647521]
[1760368970823,0.71,195.88,195.87,10.87647521]
[1760368971021,0.71,195.88,195.86,5.10568773]
[1760368971315,0.71,195.87,195.84,5.10597576]
[1760368971517,0.71,195.86,195.84,5.10597576]
[1760368971715,0.71,195.85,195.84,5.10597576]
[1760368972214,0.71,195.85,195.83,10.87647521]
[1760368972422,0.71,195.84,195.83,10.87647521]
[1760368972619,0.71,195.84,195.81,10.87647521]
[1760368972818,0.71,195.83,195.81,10.87647521]
[1760368973021,20.8,195.93,195.81,10.87647521]
[1760368973222,0.71,195.9,195.84,31.67647521]
[1760368973519,0.71,195.92,195.84,31.67647521]
[1760368973929,0.71,195.93,195.86,10.87647521]
[1760368974141,0.71,195.93,195.84,31.67647521]
[1760368974142,0.71,195.96,195.85,31.67647521]
[1760368974346,0.71,195.96,195.91,10.87647521]
[1760368975119,0.81775708,195.99,195.91,10.87647521]
[1760368975443,0.81775708,195.99,195.93,10.87647521]
[1760368975930,0.81775708,195.99,195.91,10.87647521]
[1760368976125,0.10775708,195.99,195.93,10.87647521]
[1760368976332,0.71,195.98,195.93,10.87647521]
[1760368976532,0.10775708,195.99,195.93,10.87647521]
[1760368976741,0.81775708,195.99,195.93,10.87647521]
[1760368977046,0.71,195.98,195.93,10.87647521]
[1760368977225,0.71,195.97,195.93,10.87647521]
[1760368977426,0.71,195.96,195.93,10.87647521]
[1760368977744,0.71,195.95,195.9,5.10439489]
[1760368977947,5.21007801,195.99,195.91,10.87647521]
[1760368978124,0.71,195.98,195.91,10.87647521]
[1760368978329,0.71,195.98,195.93,10.87647521]
[1760368978523,0.71,195.97,195.93,10.87647521]
[1760368978724,0.10775708,195.99,195.93,10.87647521]
[1760368979066,0.10775708,195.99,195.87,20.8]
[1760368979067,0.71,195.96,195.91,5.10436675]
[1760368979354,0.71,195.96,195.92,10.87647521]
[1760368979523,0.71,195.95,195.91,5.10436675]
[1760368979727,0.71,195.94,195.91,5.10436675]
[1760368980128,0.71,195.93,195.91,5.10436675]
[1760368980329,0.71,195.92,195.9,5.10463745]
[1760368980942,12.75431745,196.02,195.91,10.87647521]
[1760368981152,0.1091465,195.92,195.91,10.87647521]
[1760368981650,0.1091465,195.92,195.91,11.38691367]
[1760368981845,0.1091465,195.92,195.91,10.87647521]
[1760368982643,0.1091465,195.92,195.91,15.98085987]
[1760368982852,0.10768142,195.93,195.91,15.98085987]
[1760368983027,0.10768142,195.93,195.92,0.51041241]
[1760368983353,0.10238846,195.94,195.92,9.83041241]
[1760368983531,0.09483133,195.95,195.94,31.67647521]
[1760368983723,5.10073503,196.06,195.94,31.67647521]
[1760368983724,0.71,196.07,195.97,31.67647521]
[1760368983926,0.71,196.1,195.98,20.70673135]
[1760368984152,0.71,196.09,196.02,10.87647521]
[1760368984442,0.71,196.09,196.04,10.87647521]
[1760368984623,0.71,196.09,196.04,28.72997448]
[1760368984833,5.19843669,196.14,196.04,28.72997448]
[1760368984834,0.71,196.08,196.04,28.72997448]
[1760368985652,5.09876347,196.13,196.04,15.977475]
[1760368985653,0.71,196.07,196.04,15.977475]
[1760368985845,0.71,196.06,196.02,5.10130584]
[1760368986327,0.71,196.05,196.02,5.10130584]
[1760368986526,20.8,196.1,196.02,5.10130584]
[1760368986726,20.8,196.1,196.01,10.87647521]
[1760368986727,0.71,196.09,196.01,10.87647521]
[1760368986969,0.71,196.09,196.04,10.87647521]
[1760368987151,0.71,196.08,196.0,12.75493394]
[1760368987455,0.71,196.08,196.01,10.87647521]
[1760368988164,26.60865905,196.13,196.01,10.87647521]
[1760368988337,21.51,196.13,196.01,10.87647521]
[1760368988738,0.71,196.12,196.03,10.87647521]
[1760368989143,0.71,196.11,196.03,10.87647521]
[1760368990649,0.71,196.1,196.04,5.10099979]
[1760368990845,0.71,196.09,196.05,10.87647521]
[1760368991049,0.71,196.12,196.05,10.87647521]
[1760368991251,0.71,196.11,196.05,11.37647521]
[1760368991445,0.71,196.1,196.05,11.37647521]
[1760368991636,0.71,196.09,196.05,11.37647521]
[1760368991851,0.71,196.08,196.05,11.37647521]
[1760368992760,0.67,196.07,196.05,0.5]
[1760368993129,0.67,196.06,196.05,0.5]
[1760368993740,6.5059184,196.06,195.99,10.87647521]
[1760368993944,0.67,196.05,195.99,10.87647521]
[1760368994146,0.67,196.04,195.96,15.97955747]
[1760368994551,0.67,196.03,195.96,15.97955747]
[1760368994745,0.67,196.02,195.96,15.97955747]
[1760368994945,0.67,196.02,195.93,21.3]
[1760368994946,20.8,196.07,195.95,28.73813007]
[1760368995252,12.74947351,196.09,195.95,28.73813007]
[1760368995253,21.47,196.06,195.98,10.87647521]
[1760368995458,0.67,196.05,195.98,10.87647521]
[1760368996039,0.67,196.07,196.0,10.87647521]
[1760368996562,0.67,196.06,195.96,10.87647521]
[1760368996860,5.77062429,196.06,195.98,10.87647521]
[1760368997042,5.77062429,196.06,195.98,20.17647521]
[1760368997249,0.67,196.05,195.98,10.87647521]
[1760368998842,5.77087736,196.05,195.99,5.10230113]
[1760368999552,0.67,196.04,195.98,79.2]
[1760368999749,0.67,196.03,195.98,79.2]
[1760368999962,7.91472711,196.01,195.92,5.10412413]
[1760369000143,0.67,196.0,195.9,5.60452807]
[1760369000344,0.67,195.99,195.9,5.60452807]
[1760369000549,8.58472711,195.98,195.91,10.87647521]
[1760369000863,28.71472711,195.96,195.83,0.5]
[1760369001167,28.71472711,195.96,195.79,17.87629602]
[1760369001168,0.09438848,195.92,195.85,10.87647521]
[1760369001340,0.67,195.91,195.85,10.87647521]
[1760369001661,0.67,195.91,195.83,10.87647521]
[1760369001855,0.67,195.91,195.83,11.37647521]
[1760369002044,0.09438848,195.92,195.85,10.87647521]
[1760369002241,0.67,195.91,195.82,20.8]
[1760369002445,0.67,195.9,195.81,20.17647521]
[1760369002641,20.89438848,195.92,195.81,10.87647521]
[1760369002844,0.67,195.91,195.83,15.98288183]
[1760369003453,20.89438848,195.92,195.85,10.87647521]
[1760369003763,0.09438848,195.92,195.87,10.87647521]
[1760369003950,0.09438848,195.92,195.89,10.87647521]
[1760369004147,0.09438848,195.92,195.89,0.5]
[1760369004349,0.09438848,195.92,195.9,10.87647521]
[1760369004954,0.09438848,195.92,195.9,15.98089748]
[1760369005357,0.10904716,195.93,195.92,10.87647521]
[1760369005747,0.10904716,195.93,195.92,32.08647521]
[1760369005943,0.10904716,195.93,195.92,41.38647521]
[1760369006162,0.10904716,195.93,195.92,32.08647521]
[1760369006949,0.10904716,195.93,195.92,37.19059934]
[1760369008067,0.10904716,195.93,195.92,36.78059934]
[1760369008367,0.10904716,195.93,195.92,37.19059934]
[1760369009258,0.10904716,195.93,195.92,46.49059934]
[1760369009767,0.10904716,195.93,195.92,37.19059934]
[1760369009969,0.10904716,195.93,195.92,46.49059934]
[1760369010175,0.10904716,195.93,195.92,37.19059934]
[1760369010371,0.10904716,195.93,195.92,46.49059934]
[1760369010671,0.10904716,195.93,195.92,37.19059934]
[1760369010973,0.09511823,195.94,195.92,37.19059934]
[1760369011154,0.09511823,195.94,195.93,32.59686157]
[1760369011551,1e-08,195.94,195.93,32.59686157]
[1760369011952,0.10212053,195.95,195.94,10.87647521]
[1760369012169,0.10212053,195.95,195.94,20.58647521]
[1760369012366,0.10212053,195.95,195.94,11.28647521]
[1760369012573,0.10212053,195.95,195.94,20.58647521]
[1760369012880,0.10212053,195.95,195.94,16.39007835]
[1760369013551,0.10212053,195.95,195.94,25.69007835]
[1760369013751,0.10212053,195.95,195.94,16.39007835]
[1760369013958,0.10212053,195.95,195.94,25.69007835]
[1760369014159,0.10212053,195.95,195.94,16.39007835]